Cogmind - Beta 16.1 @@@ ROGUE MODE // 2026.02.20 @ 23:56:48 Player: APerTAS Result: Destroyed by G-34 Mercenary with Small Laser Performance ------------- Evolutions (1) 500 Regions Visited (2) 400 Robots Destroyed (5) 25 Value Destroyed (172) 172 Prototype IDs (0) 0 Alien Tech Used (0) 0 Bonus (0) 0 TOTAL SCORE: 1097 Bonus ------- None Cogmind --------- Core Integrity 0/400 Matter 300/300 Energy 99/100 System Corruption 2% Temperature Cool (6) Movement Core (50) Location -9/Materials Parts ------- > --- POWER (3) -------- (None) > --- PROPULSION (2) --- (None) > --- UTILITY (2) ------ Advanced Targeting Computer Advanced Targeting Computer > --- WEAPON (2) ------- (None) > --- INVENTORY (5) ---- Advanced Targeting Computer Advanced Targeting Computer Assault Cannon Assault Cannon Assault Cannon Peak State ------------ > --- POWER ------------ (None) > --- PROPULSION ------- (None) > --- UTILITY ---------- Advanced Targeting Computer Advanced Targeting Computer > --- WEAPON ----------- (None) > --- INVENTORY -------- Advanced Targeting Computer Advanced Targeting Computer Assault Cannon Assault Cannon Assault Cannon [Rating: 7] Favorites ----------- Power None Propulsion None Utility Advanced Targeting Computer Processor Advanced Targeting Computer Weapon Beam Cannon Energy Cannon Beam Cannon Build | -11 -10 -9 ------- Run | Yrd Mat Mat Slots Evolved 2 | . . 2 Power 2 | . . 2 Propulsion . | . . . Utility . | . . . Weapon . | . . . Parts Attached 3 | . 1 2 Power . | . . . Engine . | . . . Core . | . . . Reactor . | . . . Propulsion . | . . . Treads . | . . . Leg . | . . . Wheel . | . . . Hover . | . . . Flight . | . . . Utility 2 | . . 2 Device . | . . . Storage . | . . . Processor 2 | . . 2 Hackware . | . . . Protection . | . . . Artifact . | . . . Weapon 1 | . 1 . Energy Gun . | . . . Energy Cannon 1 | . 1 . Ballistic Gun . | . . . Ballistic Cannon . | . . . Launcher . | . . . Special Weapon . | . . . Impact Weapon . | . . . Slashing Weapon . | . . . Piercing Weapon . | . . . Special Melee Weapon . | . . . Unidentified Prototypes . | . . . Parts Lost 1 | . 1 . Power . | . . . Propulsion . | . . . Utility . | . . . Weapon 1 | . 1 . Highest Loss Streak 1 | . 1 . To Critical Strikes . | . . . Average Backups 2 | . . 4 Power . | . . . Propulsion . | . . . Utility 1 | . . 1 Weapon 1 | . . 2 Tool/Special . | . . . Unused Backups 6 | . . 6 Power . | . . . Propulsion . | . . . Utility 2 | . . 2 Weapon 4 | . . 4 Tool/Special . | . . . Average Slot Usage (%) 15 | . 7 19 Processor 12 | . . 19 Energy Cannon 2 | . 7 . Peak Build Rating 7 | . 1 7 Average Rating 4 | . . 6 On Entrance . | . . . Avg Prop Armor Cover (%) . | . . . Naked Turns 62 | . 45 17 Heaviest Build . | . . . Greatest Support 3 | 3 3 3 Greatest Overweight (x) . | . . . Average Overweight (x) . | . . . Largest Inventory Capacity 5 | 5 5 5 Average Capacity 5 | 5 5 5 Most Carried 5 | . . 5 Average Carried 3 | . . 4 Final Capacity 5 | 5 5 5 Final Carried 5 | . . 5 Class Distribution -------------------- 100% | Mutant Dominant Class ---------------- Mutant | -10/Materials Mutant | -9/Materials Resources | -11 -10 -9 ----------- Run | Yrd Mat Mat Matter Collected 202 | 193 9 . Remotely . | . . . Salvage Created 186 | . 186 . Parts 12 | . 12 . Haulers Intercepted . | . . . Recyclers Shooed 2 | . 2 . Parts Field Recycled . | . . . Retrieved Matter . | . . . Parts Self-Destructed . | . . . Prevented . | . . . Parts Restored . | . . . Kills | -11 -10 -9 ------- Run | Yrd Mat Mat Combat Hostiles Destroyed 3 | . 3 . Cannons 3 | . 3 . Classes Destroyed 2 | . 2 . Recycler 2 | . 2 . Swarmer 3 | . 3 . Best Kill Streak 3 | . 3 . Combat Bots Only 3 | . 3 . Max Kills in Single Turn 1 | . 1 . Gunslinging . | . . . Exploded . | . . . Melee . | . . . Uniques/NPCs Destroyed . | . . . Combat | -11 -10 -9 -------- Run | Yrd Mat Mat Hostile Shots Fired 101 | . 48 53 Missed 33 | . 16 17 Hits 68 | . 32 36 Projectile 68 | . 32 36 Critical Strikes 2 | . . 2 Damage Taken 781 | . 342 439 Core 648 | . 242 406 Absorbed by Shields . | . . . Core Remaining (%) 51 | 100 3 . Volleys Fired 29 | . 29 . Largest 1 | . 1 . Hottest 60 | . 60 . Shots Fired 29 | . 29 . Gun . | . . . Cannon 29 | . 29 . Launcher . | . . . Special . | . . . Kinetic . | . . . Thermal 29 | . 29 . Explosive . | . . . Electromagnetic . | . . . Robot Hit Streak 5 | . 5 . Robot Miss Streak 3 | . 3 . Penetration Max . | . . . Secondary Targets . | . . . Shots Hit Robots 8 | . 8 . Core Hits 6 | . 5 1 Critical Kills . | . . . Critical Parts Destroyed . | . . . Critical Strikes . | . . . Melee Attacks . | . . . Impact . | . . . Slashing . | . . . Piercing . | . . . Sneak Attacks . | . . . Combat Hostiles . | . . . Follow-up Attacks . | . . . Damage Inflicted 258 | . 228 30 Guns . | . . . Cannons 140 | . 140 . Explosions 86 | . 86 . Melee . | . . . Ramming 32 | . 2 30 Kinetic . | . . . Thermal 226 | . 226 . Explosive . | . . . Electromagnetic . | . . . Impact . | . . . Slashing . | . . . Piercing . | . . . Highest Corruption 2 | . . 2 Average Corruption 2 | . . 2 Corruption Purged . | . . . Corruption Blocked . | . . . Overload Shots . | . . . Overflow Damage 17 | . 17 . Projectiles . | . . . Explosions 17 | . 17 . Melee . | . . . Knockbacks . | . . . Impact . | . . . Kinetic . | . . . Secondary . | . . . Self-Inflicted Damage 84 | . 71 13 Shots 1 | . 1 . Rammed 8 | . 1 7 Targets Rammed 8 | . 1 7 Kicked . | . . . Crushed . | . . . Highest Temperature 290 | . 290 . Average Temperature 145 | . 145 . Received Heat Transfer 207 | . . 207 Effects 2 | . 2 . Energy Bleed 1 | . 1 . Interference 1 | . 1 . Siege Activations . | . . . Martial Activations . | . . . Shielding Activations . | . . . Robots Disrupted . | . . . Combat Hostiles . | . . . Robots Corrupted . | . . . Combat Hostiles . | . . . Parts Fried . | . . . Impact Corruptions . | . . . Robots Melted . | . . . Combat Hostiles . | . . . Parts Melted 1 | . 1 . Heat Transferred 346 | . 346 . Parts Sabotaged . | . . . Parts Stolen . | . . . Parts Stripped . | . . . Power Chain Reactions . | . . . Alert | -11 -10 -9 ------- Run | Yrd Mat Mat Maximum Alert Level 1 | . . 1 Low Security (%) 86 | 100 100 78 Level 1 13 | . . 21 Level 2 . | . . . Level 3 . | . . . Level 4 . | . . . Level 5 . | . . . High Security . | . . . Max Security . | . . . Peak Influence 269 | . 92 269 Initial 29 | . . 29 Average 88 | . 54 110 Influence Increases 462 | . 122 340 Destroy 0b10 Robot/C 60 | . 60 . Destroy 0b10 Robot/NC 10 | . 10 . Destroy Leader 10 | . 10 . Select Force Hacks 160 | . . 160 Disable Machine 15 | . 15 . Destroy Structure 27 | . 27 . Partial Spotted 30 | . . 30 Lose Combat Pursuer 150 | . . 150 Influence Decreases 193 | . 50 143 Entered New Map 43 | . . 43 Time Decay 140 | . 40 100 Lost Part 10 | . 10 . Squads Dispatched 9 | . 1 8 Investigation 6 | . . 6 Extermination . | . . . Reinforcement 3 | . 1 2 Assault . | . . . Garrison . | . . . Intercept . | . . . Searches Triggered . | . . . Construction Impeded . | . . . Haulers Reinforced . | . . . Active Scanning Responses . | . . . Cargo Convoy Interrupts . | . . . Stealth | -11 -10 -9 --------- Run | Yrd Mat Mat Distress Signals 2 | . . 2 Communications Jammed . | . . . Distress Signals . | . . . Times Spotted 32 | . 7 25 Peak Tracking Total 11 | . 3 11 Tactical Retreats 4 | . . 4 Traps | -11 -10 -9 ------- Run | Yrd Mat Mat Traps Triggered 1 | . . 1 Indirectly . | . . . Trap Hack Attempts . | . . . Triggered . | . . . Disarmed . | . . . Reprogrammed . | . . . Reused . | . . . Traps Extracted . | . . . Installed . | . . . Triggered . | . . . Machines | -11 -10 -9 ---------- Run | Yrd Mat Mat Machines Disabled 1 | . 1 . Max in Single Turn 1 | . 1 . Machines Repaired . | . . . Machines Dismantled . | . . . Machines Sabotaged 2 | . . 2 Overloaded Fab Kills . | . . . Hacking | -11 -10 -9 --------- Run | Yrd Mat Mat Machines Accessed 5 | . . 5 Terminals 3 | . . 3 Fabricators . | . . . Repair Stations . | . . . Recycling Units 2 | . . 2 Scanalyzers . | . . . Garrison Access . | . . . Total Hacks 6 | . . 6 Successful 5 | . . 5 Failed 1 | . . 1 Catastrophic . | . . . Database Lockouts . | . . . Manual 6 | . . 6 Terminals 3 | . . 3 Fabricators . | . . . Repair Stations . | . . . Recycling Units 3 | . . 3 Scanalyzers . | . . . Garrison Access . | . . . Terminal Hacks . | . . . Fabricator Hacks . | . . . Repair Station Hacks . | . . . Recycling Unit Hacks . | . . . Scanalyzer . | . . . Garrison Access Hacks . | . . . Unauthorized Hacks 5 | . . 5 Terminals 3 | . . 3 Sabotage 3 | . . 3 Fabricators . | . . . Repair Stations . | . . . Recycling Units 2 | . . 2 Tunnel 2 | . . 2 Scanalyzers . | . . . Garrison Access . | . . . Data Cores Recovered . | . . . Used . | . . . Hacking Detections . | . . . Full Trace Events . | . . . Feedback Events . | . . . Feedback Blocked . | . . . Robot Schematics Acquired . | . . . Robots Built . | . . . Authchips . | . . . Time . | . . . Total Robot Build Rating . | . . . Part Schematics Acquired . | . . . Parts Built . | . . . Authchips . | . . . Time . | . . . Total Part Build Rating . | . . . Part Studies Acquired . | . . . Parts Repaired . | . . . Time . | . . . Parts Recycled . | . . . Recycled Matter . | . . . Retrieved Matter . | . . . Retrieved Components . | . . . Parts Scanalyzed . | . . . Part Schematics Acquired . | . . . Parts Damaged . | . . . Bothacking | -11 -10 -9 ------------ Run | Yrd Mat Mat Used RIF Installer . | . . . Robots Hacked . | . . . Non-combat . | . . . Combat . | . . . Robot Hacks Applied . | . . . Relay Couplers Released . | . . . Fabnet Peak Effective % . | . . . Robots Rewired . | . . . Allies Hacked . | . . . Hacks Repelled . | . . . Allies | -11 -10 -9 -------- Run | Yrd Mat Mat Total Allies . | . . . Largest Group . | . . . Highest-Rated Group . | . . . Highest-Rated Ally . | . . . Total Orders . | . . . Ally Attacks . | . . . Total Damage . | . . . Kills . | . . . Allies Corrupted . | . . . Allies Melted . | . . . Intel | -11 -10 -9 ------- Run | Yrd Mat Mat Active Infowar (turns) . | . . . Robot Analysis Total . | . . . Derelict Logs Recovered . | . . . Drone Launches . | . . . Drone Recoveries . | . . . Exploration | -11 -10 -9 ------------- Run | Yrd Mat Mat Turns Passed 328 | 12 105 211 Spaces Moved 500 | 23 87 390 Core 500 | 23 87 390 Treads . | . . . Legs . | . . . Wheels . | . . . Hover . | . . . Flight . | . . . Fastest Speed 50 | 50 50 50 Average Speed 50 | 50 50 50 Slowest Speed 50 | 50 50 50 Overloaded Moves . | . . . Propulsion Burnouts . | . . . Robots Hopped . | . . . Potential Cave-ins . | . . . Cave-ins Triggered . | . . . Exploration Rate (%) 25 | 3 26 47 Regions Visited 2 Branch Regions . Pre-discovered Areas 2 | . . 2 Known Exits Taken . | . . . Unknown Exits Taken 2 | 1 1 . Scrap Searched . | . . . Spaces Dug . | . . . Terrain Destroyed 26 | . 26 . Melee . | . . . Projectile . | . . . AOE 26 | . 26 . Terrain Rammed . | . . . Walls Destroyed . | . . . Machines Disabled . | . . . Actions | -11 -10 -9 --------- Run | Yrd Mat Mat Total 546 | 22 118 406 Wait 1 | . 1 . Move 498 | 22 86 390 Hop . | . . . Pick Up 6 | . . 6 Fast Attach 3 | . 1 2 Attach . | . . . Detach . | . . . Swap . | . . . Drop 1 | . . 1 Fire 29 | . 29 . Melee . | . . . Ram 8 | . 1 7 Kick . | . . . Crush . | . . . Escape Stasis . | . . . Rewire . | . . . Trap . | . . . Miscellaneous . | . . . Route ------- -11/Scrapyard -10/Materials -9/Materials (discovered 2 exits: [*Min] / [*Sto]) History --------- Turn | Location | Event 3 | -11/Scrapyard | Discovered new exit (range 16) 13 | -11/Scrapyard | Entered Materials 87 | -10/Materials | Core integrity fell below 50% 108 | -10/Materials | Core integrity fell below 20% 113 | -10/Materials | Discovered new exit (range 10) 118 | -10/Materials | Entered another Materials area 118 | -9/Materials | Evolved 2 slots: Power x2 155 | -9/Materials | Discovered new exit (range 9) 253 | -9/Materials | Core integrity fell below 50% 310 | -9/Materials | Build established: Mutant 324 | -9/Materials | Discovered new exit (range 14) 325 | -9/Materials | Core integrity fell below 20% 329 | -9/Materials | Destroyed by G-34 Mercenary with Small Laser Last Messages --------------- squad. 00292_ Slammed into K-01 Serf. 00303_ K-01 Serf collects debris. 00304_ O-16 Technician: "IFF HANDSHAKE FAILED. SECURING TERMINAL." 00304_ O-16 Technician sends out distress signal. 00306_ K-01 Serf collects debris. 00310_ ALERT: Hostiles spotted, dispatching reinforcements to Terminal M012. 00312_ K-01 Serf collects debris. 00318_ S-10 Pest destroyed. 00322_ Connecting with Recycling Unit... >>Force(Tunnel) DISCOVERED[-9/Recycling] 00322_ ALERT: Suspicious activity at Recycling Unit M002. Dispatching Investigation squad. 00324_ EXIT=FOUND 00328_ Slammed into G-34 Mercenary. 00328_ Destabilizing: System corrupted (+2). 00329_ Slammed into G-34 Mercenary. Map ----- +----------------------------------------------------+ | ??????# #??????????????????????????????????# | | ??????# #??????????????????????????????????## | | ??????# #???????????????????????????????????? | | ??????# #???????????????????????????????????? | | ??????# #???????????????????????????????????? | | ??????# #???????????????????????????????????? | | ??????# #???????????????????????????????????? | | ??????# #???????????????????????????????????? | | ??????# #???????????????????????????????????? | | ??????# #???????????????????????????????????? | | ?????## ##??????????????????????????????????? | | ?????# #??????????????????????????????????? | | ?????# ##### "" #????????????????????????? | | ?????+ T ????????????????????? | | ?????# [ ##### #????????????????????????? | | ?????# *% #??????????????????????????????????? | | ?????### ###??????+#####??????????????????????? | | ???????# #???????? #??????????????????????? | | ???????# #???????? #??????????????????????? | | ???????# #???????? #??????????????????????? | | ???????# #????????""" #??????????????????????? | | ???????# #?????????"" #??????????????????????? | | ?#######/###????????"g ######?????????????????? | | ?# ##########/## ##+####???????????? | | ?# """ # bg g ????????? | | ?# """ # s gsg@ < ????????? | | ?# """ + #######/## ##+???????????????? | | ?# """ ""# #????"" #?? ##?????????????????? | | ?# """ Y"# #?? """ #??????????????????????? | | ?# ""####?# """ #??????????????????????? | | ?# #????# #??????????????????????? | | ?## ########????#! +??????????????????????? | | ??##????????????# % * #??????????????????????? | | ????????????????########??????????????????????? | | ??????????????????????????????????????????????? | | ??????????????????????????????????????????????? | | ??????????????????????????????????????????????? | | ??????????????????????????????????????????????? | | | | | | | | | | | | | | | | | | | | | | | | | +----------------------------------------------------+ Best States ------------- Heat Dissipation 28 Energy Generation 5 Energy Capacity 100 Matter Stores 300 Matter Capacity 300 Sight Range 16 Terrain Scan Density 10 Evasion (%) 50 Targeting Accuracy 16 Item Schematics ----------------- None Robot Schematics ------------------ None Fabricated ------------ Nothing Repaired ---------- Nothing Studied --------- None Alien Tech Used ----------------- None Achievements -------------- None Challenges ------------ None Game ------ Seed BoltEtherialAmplifier Manual? 0 Play Time 00:06:50 Cumulative 57.6 hours Start 2026.02.20 @ 23:52:47 End 2026.02.20 @ 23:56:48 Sessions 1 Manual Loads 0 Difficulty Rogue Special Mode None Game No. 179 Rogue 179 Adventurer 0 Explorer 0 Win Type - Total 0 Types 0/0/0/0/0/0/0/0/0/0 Lore% 61 Gallery% 35 Achievement% 33 Wizard Run 0 Options --------- Layout 0 ASCII 0 Keyboard 0 Movement Arrows Keybinds 0 Fullscreen 1 Font 24/Terminus Map View 64x52 Zoom Use 0% Tactical HUD 1 Map Filters NONE Filters NONE Steam 1 RUN: c9018df2-80b2-4e51-b399-654a7b03b7f8